lending/lending_fUSD_20260102
["ID","MTS","AMOUNT","RATE_DAILY","PERIOD"]
[400303911,1767330632597,-500.0,0.0001507,2]
[400303912,1767330632607,-500.0,0.0001507,2]
[400303913,1767330632616,-500.0,0.0001507,2]
[400303915,1767330632625,-500.0,0.0001507,2]
[400303918,1767330632638,-500.0,0.0001507,2]
[400303920,1767330632648,-500.0,0.0001507,2]
[400303922,1767330632658,-500.0,0.0001507,2]
[400303924,1767330632668,-500.0,0.0001507,2]
[400303926,1767330632678,-500.0,0.0001507,2]
[400303928,1767330632688,-500.0,0.0001507,2]
[400303930,1767330632697,-500.0,0.0001507,2]
[400303932,1767330632707,-500.0,0.0001507,2]
[400303934,1767330632717,-574.16882724,0.0001507,2]
[400303935,1767330632726,-500.0,0.0001507,2]
[400303936,1767330632736,-500.0,0.0001507,2]
[400303937,1767330632745,-128.37999894,0.0001507,2]
[400303938,1767330632757,-371.62000106,0.0001507,2]
[400303939,1767330632767,-500.0,0.0001507,2]
[400303940,1767330632776,-500.0,0.0001507,2]
[400303941,1767330632786,-500.0,0.0001507,2]
[400303942,1767330632796,-500.0,0.0001507,2]
[400303943,1767330632806,-527.28125014,0.0001507,2]
[400303944,1767330632815,-500.0,0.0001507,2]
[400303945,1767330632828,-500.0,0.0001507,2]
[400303946,1767330632838,-500.0,0.0001507,2]
[400303947,1767330632847,-500.0,0.0001507,2]
[400303948,1767330632857,-500.0,0.0001507,2]
[400303949,1767330632867,-500.0,0.0001507,2]
[400303950,1767330632876,-500.0,0.0001507,2]
[400303951,1767330632886,-500.0,0.0001507,2]
[400303952,1767330632895,-500.0,0.0001507,2]
[400303953,1767330632904,-500.0,0.0001507,2]
[400303954,1767330632914,-500.0,0.0001507,2]
[400303955,1767330632924,-502.41688272,0.0001507,2]
[400303956,1767330632933,-500.0,0.0001507,2]
[400303957,1767330632943,-500.0,0.0001507,2]
[400303958,1767330632952,-500.0,0.0001507,2]
[400303959,1767330632961,-500.0,0.0001507,2]
[400303960,1767330632971,-267.35,0.0001507,2]
[400303961,1767330632981,-300.0,0.0001507,2]
[400303962,1767330632990,-1000.0,0.00015071,2]
[400303963,1767330632999,-2618.42595349,0.00015071,2]
[400303964,1767330633011,-290.05642929,0.00015071,2]
[400303965,1767330633022,-114.58151722,0.00015071,2]
[400303966,1767330633034,-2500.0,0.00015071,2]
[400303967,1767330633044,-2940.15694934,0.000151,2]
[400303968,1767330633058,-58.58501696,0.000151,2]
[400303969,1767330633068,-776.60519447,0.000151,2]
[400303970,1767330633080,-255.39480553,0.000151,2]
[400303971,1767330633090,-268.55639569,0.000151,2]
[400303972,1767330633099,-43.10355122,0.000151,2]
[400303973,1767330633111,-108.49744244,0.000151,2]
[400303974,1767330633121,-304.76530255,0.000151,2]
[400303975,1767330633131,-1565.05194291,0.000151,2]
[400303976,1767330633141,-353.26,0.00015122,2]
[400303977,1767330633150,-151.0,0.00015162,2]
[400303978,1767330633160,-151.0,0.00015162,2]
[400303979,1767330633170,-151.0,0.00015162,2]
[400303980,1767330633180,-151.0,0.00015162,2]
[400303981,1767330633189,-151.0,0.00015162,2]
[400303982,1767330633200,-151.0,0.00015162,2]
[400303983,1767330633210,-151.0,0.00015162,2]
[400303984,1767330633220,-151.0,0.00015162,2]
[400303985,1767330633229,-151.0,0.00015162,2]
[400303986,1767330633239,-151.0,0.00015162,2]
[400303987,1767330633249,-151.0,0.00015162,2]
[400303988,1767330633259,-151.0,0.00015162,2]
[400303989,1767330633269,-151.0,0.00015162,2]
[400303990,1767330633279,-151.0,0.00015162,2]
[400303991,1767330633288,-151.0,0.00015162,2]
[400303992,1767330633299,-151.0,0.00015162,2]
[400303993,1767330633308,-151.0,0.00015162,2]
[400303994,1767330633318,-151.0,0.00015162,2]
[400303995,1767330633327,-151.0,0.00015162,2]
[400303996,1767330633338,-151.0,0.00015162,2]
[400303997,1767330633347,-500.0,0.0001517,2]
[400303998,1767330633357,-225.36921016,0.0001517,2]
[400303999,1767330633366,-556.31076669,0.0001517,2]
[400304000,1767330633376,-272.60794457,0.0001517,2]
[400304001,1767330633386,-153.13023395,0.0001517,2]
[400304002,1767330633398,-85.50841112,0.0001517,2]
[400304003,1767330633408,-304.35242497,0.0001517,2]
[400304004,1767330633426,-158.89033024,0.0001517,2]
[400304005,1767330633436,-794.979,0.0001517,2]
[400304006,1767330633446,-7271.13108115,0.00015171,2]
[400304007,1767330633459,-3681.56994553,0.00015171,2]
[400304008,1767330633470,-679.24938047,0.00015171,2]
[400304009,1767330633482,-4208.02539024,0.00015171,2]
[400304010,1767330633494,-1613.9502996,0.00015171,2]
[400304011,1767330633506,-4328.06566314,0.00015171,2]
[400304012,1767330633517,-357.87831592,0.00015171,2]
[400304013,1767330633529,-3045.52,0.00015171,2]
[400304020,1767330638158,-846.33812054,0.00015171,2]
[400304021,1767330638171,-712.36798468,0.00015171,2]
[400304022,1767330638182,-426.61846658,0.00015171,2]
[400304023,1767330638211,-480.71237647,0.00015171,2]
[400304024,1767330638268,-915.68180285,0.00015171,2]
[400304025,1767330638324,-723.76126563,0.00015171,2]
[400304026,1767330638335,-9298.35389283,0.00015171,2]
[400304027,1767330638347,-639.31888652,0.00015171,2]
[400304028,1767330638358,-11438.13318441,0.00015171,2]
[400304029,1767330638369,-39468.99506,0.00015171,2]
[400304030,1767330638381,-2086.52212882,0.00015171,2]
[400304031,1767330638392,-766.80359483,0.00015171,2]
[400304032,1767330638403,-830.62918981,0.00015171,2]
[400304122,1767330640364,-4065.58012154,0.00015171,2]
[400304123,1767330640376,-210428.75196144,0.00015171,2]
[400304124,1767330640387,-347.053942,0.00015171,2]
[400304125,1767330640398,-3114.10194114,0.00015171,2]
[400304126,1767330640409,-8242.04724838,0.00015171,2]
[400304127,1767330640425,-5945.50145145,0.00015171,2]
[400304128,1767330640436,-674037.33730403,0.00015171,2]
[400304129,1767330640445,-551.96188087,0.000152,2]
[400304130,1767330640455,-2072.38929267,0.00015281,2]
[400304131,1767330640464,-166.66,0.00015294,2]
[400304132,1767330640474,-2998.7419663,0.000153,2]
[400304134,1767330640483,-1565.05194285,0.000153,2]
[400304136,1767330640492,-7035.6428032,0.00015323,2]
[400304138,1767330640501,-1414.8625069,0.00015323,2]
[400304140,1767330640511,-45936.8765802,0.00015323,2]
[400304143,1767330640741,-1853.430338,0.00015323,2]
[400304144,1767330640751,-151.0,0.00015323,2]
[400304145,1767330640761,-34580.4988441,0.00015323,2]
[400304146,1767330640770,-267.35,0.00015344,2]
[400304147,1767330640779,-304.76530253,0.00015357,2]
[400304148,1767330640788,-218.60503033,0.0001536,2]
[400304149,1767330640798,-500.0,0.0001537,2]
[400304150,1767330640807,-500.0,0.0001537,2]
[400304151,1767330640817,-500.0,0.0001537,2]
[400304152,1767330640826,-521.68961889,0.0001537,2]
[400304153,1767330640836,-500.0,0.0001537,2]
[400304155,1767330640845,-500.0,0.0001537,2]
[400304157,1767330640855,-500.0,0.0001537,2]
[400304158,1767330640864,-500.0,0.0001537,2]
[400304159,1767330640873,-500.0,0.0001537,2]
[400304160,1767330640883,-500.0,0.0001537,2]
[400304161,1767330640892,-501.79030016,0.0001537,2]
[400304162,1767330640901,-500.0,0.0001537,2]
[400304163,1767330640911,-500.0,0.0001537,2]
[400304164,1767330640920,-500.0,0.0001537,2]
[400304165,1767330640930,-516.47256288,0.0001537,2]
[400304166,1767330640939,-500.0,0.0001537,2]
[400304167,1767330640949,-512.25312821,0.0001537,2]
[400304168,1767330640959,-500.0,0.0001537,2]
[400304169,1767330640968,-500.0,0.0001537,2]
[400304170,1767330640978,-500.0,0.0001537,2]
[400304171,1767330640987,-500.0,0.0001537,2]
[400304172,1767330640996,-831.0,0.000154,2]
[400304173,1767330641006,-462.08992048,0.00015481,2]
[400304174,1767330641015,-2998.7419663,0.000155,2]
[400304175,1767330641025,-1565.05194285,0.000155,2]
[400304176,1767330641034,-4812.0,0.00015542,2]
[400304177,1767330641043,-565.0,0.00015542,2]
[400304178,1767330641056,-2443.616,0.00015542,2]
[400304179,1767330641065,-166.66,0.00015591,2]
[400304180,1767330641075,-304.76530253,0.00015614,2]
[400304181,1767330641084,-267.36,0.00015618,2]
[400304182,1767330641095,-1604.0,0.00015661,2]
[400304183,1767330641104,-502.0,0.00015699,2]
[400304184,1767330641114,-2998.7419663,0.000157,2]
[400304185,1767330641125,-1565.05194285,0.000157,2]
[400304186,1767330641135,-1000.0,0.000158,2]
[400304187,1767330641144,-304.76530253,0.00015871,2]
[400304188,1767330641153,-2998.7419663,0.000159,2]
[400304189,1767330641163,-151.60099365,0.000159,2]
[400304190,1767330641172,-820.5,0.0001599,2]
[400304191,1767330641182,-500.0,0.00015999,2]
[400304192,1767330641192,-142560.1888085,0.00016,4]
[400304193,1767330641200,-1632.98953952,0.00016,2]
[400304194,1767330641210,-1680.0,0.00016002,2]
[400304195,1767330641219,-243.342,0.00016092,2]
[400304196,1767330641229,-150.0,0.00016092,2]
[400304197,1767330641238,-150.0,0.00016092,2]
[400304198,1767330641247,-150.686,0.00016092,2]
[400304199,1767330641257,-151.0,0.00016092,2]
[400304200,1767330641267,-3473.715,0.00016092,2]
[400304201,1767330641278,-1407.01,0.00016092,2]
[400304202,1767330641290,-1331.677,0.00016092,2]
[400304203,1767330641299,-614.966,0.00016092,2]
[400304204,1767330641309,-1267.698,0.00016092,2]
[400304205,1767330641318,-433.277,0.00016092,2]
[400304206,1767330641329,-168.0,0.00016095,2]
[400304207,1767330641338,-5888.0,0.00016095,2]
[400304208,1767330641348,-2998.7419663,0.000161,2]
[400304209,1767330641357,-304.76530253,0.00016129,2]
[400304210,1767330641367,-5888.0,0.00016133,2]
[400304211,1767330641376,-5888.0,0.00016162,2]
[400304212,1767330641386,-35717.35268886,0.000162,5]
[400304213,1767330641396,-2998.7419663,0.000163,2]
[400304214,1767330641406,-5888.0,0.00016368,2]
[400304215,1767330641416,-304.76530253,0.00016386,2]
[400304216,1767330641426,-420.0,0.00016416,2]
[400304217,1767330641436,-3079.62,0.00016438,2]
[400304218,1767330641445,-300.0,0.00016438,3]
[400304219,1767330641456,-300.0,0.00016438,3]
[400304220,1767330641465,-300.0,0.00016438,3]
[400304221,1767330641475,-300.0,0.00016438,3]
[400304222,1767330641485,-300.0,0.00016438,3]
[400304223,1767330641495,-1200.0,0.0001649,2]
[400304224,1767330641505,-353.26,0.00016492,2]
[400304225,1767330641514,-2998.7419663,0.000165,2]
[400304226,1767330641523,-5888.0,0.00016518,2]
[400304227,1767330641533,-5888.0,0.00016562,2]
[400304228,1767330641542,-5888.0,0.00016589,2]
[400304229,1767330641551,-1000.0,0.00016597,2]
[400304230,1767330641560,-5888.0,0.00016598,2]
[400304231,1767330641569,-304.76530253,0.00016643,2]
[400304232,1767330641578,-151.0,0.00016661,2]
[400304233,1767330641588,-151.0,0.00016661,2]
[400304234,1767330641598,-151.0,0.00016661,2]
[400304235,1767330641607,-5888.0,0.00016674,2]
[400304236,1767330641617,-2998.7419663,0.000167,2]
[400304237,1767330641626,-5888.0,0.00016736,2]
[400304238,1767330641636,-5888.0,0.00016738,2]
[400304239,1767330641646,-2998.7419663,0.000169,2]
[400304240,1767330641655,-353.70211769,0.000169,2]
[400304241,1767330641665,-304.76530253,0.000169,2]
[400304242,1767330641674,-11425.11711389,0.000169,2]
[400304243,1767330641684,-5888.0,0.00016901,2]
[400304244,1767330641694,-500.75268795,0.00016973,2]
[400304245,1767330641703,-291.53447399,0.00016973,2]
[400304246,1767330641715,-500.0,0.00016973,2]
[400304247,1767330641724,-507.03378087,0.00016973,2]
[400304248,1767330641734,-501.90844527,0.00016973,2]
[400304249,1767330641744,-346.93756903,0.00016973,2]
[400304250,1767330641753,-507.00202243,0.00016973,2]
[400304251,1767330641763,-501.44584873,0.00016973,2]
[400304252,1767330641773,-500.0,0.00016973,2]
[400304253,1767330641783,-501.81524893,0.00016973,2]
[400304254,1767330641794,-501.79091789,0.00016973,2]
[400304255,1767330641803,-500.7883048,0.00016973,2]
[400304256,1767330641813,-500.0,0.00016973,2]
[400304257,1767330641822,-501.1355415,0.00016973,2]
[400304258,1767330641832,-500.0,0.00016973,2]
[400304259,1767330641842,-501.65904171,0.00016973,2]
[400304260,1767330641852,-501.06341087,0.00016973,2]
[400304261,1767330641861,-501.65106127,0.00016973,2]
[400304262,1767330641872,-501.73487584,0.00016973,2]
[400304263,1767330641882,-501.79589617,0.00016973,2]
[400304264,1767330641892,-501.52212602,0.00016973,2]
[400304265,1767330641902,-501.29469144,0.00016973,2]
[400304266,1767330641911,-507.78840593,0.00016973,2]
[400304267,1767330641921,-153.48682574,0.00016973,2]
[400304268,1767330641930,-5888.0,0.00016989,2]
[400304269,1767330641939,-596.72331593,0.00016999,5]
[400304270,1767330641949,-13812.52635985,0.00016999,2]
[400304271,1767330641958,-1320169.17563863,0.00017,2]
[400304272,1767330641972,-311.98467859,0.00017,2]
[400304273,1767330641985,-524.9326699,0.00017,2]
[400304274,1767330641996,-1348.04538196,0.00017,2]
[400304275,1767330644585,-913.0,0.00015542,2]
[400304276,1767330644594,-1541.624,0.000159,2]
[400304281,1767330646197,-23.42794285,0.000159,2]
[400304282,1767330646207,-151.0,0.00016697,2]
[400304283,1767330646216,-151.0,0.00016697,2]
[400304284,1767330646225,-782.75822565,0.00017,2]
[400304285,1767330646253,-868.4999,0.00017,2]
[400304286,1767330646263,-744231.8247967,0.00017,2]
[400304287,1767330646421,-369194.40530939,0.00017,2]
[400304288,1767330785171,322.6107,0.00043193,30]
[400304289,1767330787863,414.0,0.00043193,30]
[400304290,1767330787918,151.0,0.00043193,30]
[400304291,1767330788259,578.20924308,0.00043193,30]
[400304292,1767330788317,167.80825494,0.00043193,30]
[400304293,1767330788374,429.318,0.00043193,30]
[400304294,1767330788425,151.0,0.00043193,30]
[400304295,1767330788989,151.0,0.00043193,30]
[400304296,1767330847665,414.0,0.00043193,30]
[400304297,1767330848315,414.0,0.00043193,30]
[400304298,1767330987623,151.0,0.00043193,50]
[400304299,1767330987978,151.0,0.00043193,50]
[400304300,1767330988276,151.0,0.00043193,50]
[400304301,1767330988609,151.0,0.00043193,50]
[400304302,1767330988903,159.380052,0.00043193,50]
[400304303,1767331025440,200.0,0.00043193,50]
[400304304,1767331025689,620.0,0.00043193,50]
[400304305,1767331026027,200.0,0.00043193,50]
[400304306,1767331026627,200.0,0.00043193,50]
[400304307,1767331027246,200.0,0.00043193,50]
[400304308,1767331030335,200.0,0.00043193,50]
[400304309,1767331030935,200.0,0.00043193,50]
[400304310,1767331031686,200.0,0.00043193,50]
[400304311,1767331032310,200.0,0.00043193,50]
[400304312,1767331038069,500.0,0.00043193,50]
[400304313,1767331038597,200.0,0.00043193,50]
[400304314,1767331038683,500.0,0.00043193,50]
[400304315,1767331039306,500.0,0.00043193,50]
[400304316,1767331039942,500.0,0.00043193,50]
[400304317,1767331316116,1240.033652,0.00043181,50]
[400304318,1767331316381,1240.033652,0.00043181,50]
[400304319,1767331316656,1240.033652,0.00043181,50]
[400304320,1767331316987,1240.033652,0.00043181,50]
[400304321,1767331317300,1240.033652,0.00043181,50]
[400304322,1767331317590,1240.033652,0.00043181,50]
[400304323,1767331317870,1240.033652,0.00043181,50]
[400304324,1767331318155,1240.033652,0.00043181,50]
[400304325,1767331318438,1240.033652,0.00043181,50]
[400304326,1767331318714,1240.033652,0.00043181,50]
[400304327,1767331319144,1240.033652,0.00043181,50]
[400304328,1767331319451,1240.033652,0.00043181,50]
[400304329,1767331319740,1240.033652,0.00043181,50]
[400304330,1767331320038,1240.033652,0.00043181,50]
[400304331,1767331320374,1240.033652,0.00043181,50]
[400304332,1767331320656,1240.033652,0.00043181,50]
[400304333,1767331321107,1240.033652,0.00043181,50]
[400304334,1767331321423,1240.033652,0.00043181,50]
[400304335,1767331321727,1240.033652,0.00043181,50]
[400304336,1767331322062,1240.033661,0.00043181,50]
[400304337,1767331437411,481.68420144,0.00043181,60]
[400304338,1767331569061,205.18,0.00043181,120]
[400304339,1767331614133,-500.0,0.00013373,2]
[400304340,1767331614156,-58.79324243,0.00013373,2]
[400304341,1767331622094,50000.0,0.00043181,32]
[400304342,1767331627092,50000.0,0.00043181,33]
[400304343,1767331723341,1414.95,0.00043181,120]
[400304344,1767331723603,1414.95,0.00043181,120]
[400304345,1767331723861,1414.95,0.00043181,120]
[400304346,1767331724132,1414.95,0.00043181,120]
[400304347,1767331724369,1414.95,0.00043181,120]
[400304348,1767331724630,1414.95,0.00043181,120]
[400304349,1767331724870,1414.95,0.00043181,120]
[400304350,1767331725177,1414.95,0.00043181,120]
[400304351,1767331725564,1414.95,0.00043181,120]
[400304352,1767331725832,1414.95,0.00043181,120]
[400304353,1767331726072,1414.95,0.00043181,120]
[400304354,1767331726315,1414.95,0.00043181,120]
[400304355,1767331726560,1414.95,0.00043181,120]
[400304356,1767331726791,1414.95,0.00043181,120]
[400304357,1767331727041,1414.95,0.00043181,120]
[400304358,1767331727300,1414.95,0.00043181,120]
[400304359,1767331727534,1414.95,0.00043181,120]
[400304360,1767331727777,1414.95,0.00043181,120]
[400304361,1767331728031,1414.95,0.00043181,120]
[400304362,1767331728273,1414.95,0.00043181,120]
[400304363,1767331728554,1414.95,0.00043181,120]
[400304364,1767331728797,1414.95,0.00043181,120]
[400304365,1767331729036,1414.95,0.00043181,120]
[400304366,1767331729283,1415.16307,0.00043181,120]
[400304374,1767331832189,-500.0,0.00013373,2]
[400304376,1767331832199,-250.0,0.00013373,2]
[400304377,1767331832209,-250.0,0.00013416,2]
[400304378,1767331832219,-150.0,0.00013463,2]
[400304379,1767331832228,-152.10127393,0.00013463,2]
[400304380,1767331832237,-1000.0,0.000135,2]
[400304381,1767331832250,-222.87005119,0.00013875,2]
[400304382,1767331832264,-745.6569597,0.00013875,2]
[400304383,1767331832275,-625.76298911,0.00013875,2]
[400304384,1767331832285,-159.87,0.00013933,2]
[400304385,1767331832294,-55.24040435,0.00014009,2]
[400304386,1767331832305,-244.75959565,0.00014009,2]
[400304387,1767331832315,-300.0,0.00014009,2]
[400304388,1767331832324,-1200.0,0.00014009,2]
[400304389,1767331832333,-300.0,0.00014009,2]
[400304390,1767331832344,-1729.06110435,0.0001401,2]
[400304391,1767331832356,-4900.3748153,0.0001401,2]
[400304392,1767331832368,-400.37408035,0.0001401,2]
[400304393,1767331832377,-1200.0,0.00014041,2]
[400304394,1767331832388,-200.0,0.00014042,2]
[400304395,1767331832398,-2071.23,0.00014044,2]
[400304396,1767331832407,-1000.0,0.00014446,2]
[400304397,1767331832418,-990.05,0.0001451,2]
[400304398,1767331832427,-174.05511264,0.0001471,2]
[400304399,1767331832438,-226.97311419,0.0001471,2]
[400304400,1767331832447,-195.0,0.0001471,2]
[400304401,1767331832456,-300.0,0.0001471,2]
[400304402,1767331832468,-195.0,0.0001471,2]
[400304403,1767331832478,-250.0,0.0001471,2]
[400304404,1767331832487,-195.0,0.0001471,2]
[400304405,1767331832497,-177.47226613,0.00014726,2]
[400304406,1767331832506,-9733.87009341,0.00014726,2]
[400304407,1767331832515,-150.0,0.00014769,2]
[400304408,1767331832524,-51210.99477421,0.0001477,2]
[400304409,1767331832558,298.76051409,0.000115,2]
[400304410,1767331832571,-1908.11198271,0.000115,2]
[400304411,1767331832580,-12678.34253917,0.0001477,2]
[400304412,1767331832592,-4123.77531072,0.0001477,2]
[400304413,1767331832603,-1140.61393534,0.0001477,2]
[400304414,1767331832614,-1368.78642871,0.0001477,2]
[400304415,1767331832624,-874.0,0.0001477,2]
[400304421,1767331838267,-211.87408647,0.00014769,2]
[400304422,1767331838277,-290.17532708,0.00014769,2]
[400304423,1767331838286,-500.0,0.00014769,2]
[400304424,1767331838296,-500.0,0.00014769,2]
[400304425,1767331838305,-250.9133895,0.00014769,2]
[400304426,1767331838315,-165.51093164,0.00014769,2]
[400304427,1767331838325,-169.69791668,0.00014769,2]
[400304428,1767331838334,-500.0,0.00014769,2]
[400304429,1767331838344,-492.89198411,0.00014769,2]
[400304430,1767331838354,-500.0,0.00014769,2]
[400304431,1767331838363,-500.0,0.00014769,2]
[400304432,1767331838373,-500.0,0.00014769,2]
[400304433,1767331838382,-500.0,0.00014769,2]
[400304434,1767331838397,-29276.43636202,0.0001477,2]
[400304435,1767331838429,-253.4450449,0.0001477,2]
[400304436,1767331838440,-635.9780511,0.0001477,2]
[400304437,1767331838454,-895.5214939,0.0001477,2]
[400304438,1767331838467,-6478.71014821,0.0001477,2]
[400304439,1767331838482,-2584.28422969,0.0001477,2]
[400304440,1767331838493,-1190.8501946,0.0001477,2]
[400304442,1767331838503,-1101.50847586,0.0001477,2]
[400304444,1767331838515,-1260.78888652,0.0001477,2]
[400304629,1767331840348,-9263.46295326,0.0001477,2]
[400304631,1767331840359,-11785.87988392,0.0001477,2]
[400304637,1767331840406,-8975.40587101,0.0001477,2]
[400304661,1767331840613,-8763.45477203,0.0001477,2]
[400304663,1767331840626,-4087.71775331,0.0001477,2]
[400304665,1767331840639,-842050.04289152,0.0001477,2]
[400304668,1767331840648,-353.3089781,0.0001487,2]
[400304670,1767331840657,-151.0,0.00014961,2]
[400304672,1767331840667,-151.0,0.00014961,2]
[400304674,1767331840675,-151.0,0.00014961,2]
[400304676,1767331840685,-151.0,0.00014961,2]
[400304678,1767331840694,-151.0,0.00014961,2]
[400304680,1767331840703,-151.0,0.00014961,2]
[400304681,1767331840712,-151.0,0.00014961,2]
[400304683,1767331840721,-151.0,0.00014961,2]
[400304685,1767331840730,-151.0,0.00014961,2]
[400304687,1767331840739,-151.0,0.00014961,2]
[400304690,1767331840748,-151.0,0.00014961,2]
[400304692,1767331840757,-159.78582504,0.00014961,2]
[400304693,1767331840766,-9733.87009337,0.00014968,2]
[400304696,1767331840775,-500.0,0.00014969,2]
[400304698,1767331840784,-500.0,0.00014969,2]
[400304700,1767331840793,-500.0,0.00014969,2]
[400304701,1767331840802,-517.32516498,0.00014969,2]
[400304704,1767331840812,-508.81699603,0.00014969,2]
[400304706,1767331840821,-500.0,0.00014969,2]
[400304708,1767331840830,-500.0,0.00014969,2]
[400304710,1767331840839,-524.65002391,0.00014969,2]
[400304712,1767331840848,-500.0,0.00014969,2]
[400304715,1767331840857,-500.0,0.00014969,2]
[400304717,1767331840866,-536.62620308,0.00014969,2]
[400304718,1767331840875,-804.589,0.00014969,2]
[400304721,1767331840884,-174.04,0.00014969,2]
[400304723,1767331840892,-500.0,0.00014969,2]
[400304724,1767331840901,-500.0,0.00014969,2]
[400304726,1767331840911,-507.72040443,0.00014969,2]
[400304728,1767331840920,-500.0,0.00014969,2]
[400304730,1767331840929,-500.0,0.00014969,2]
[400304732,1767331840938,-510.40919778,0.00014969,2]
[400304734,1767331840947,-500.0,0.00014969,2]
[400304736,1767331840956,-500.0,0.00014969,2]
[400304738,1767331840965,-507.20388278,0.00014969,2]
[400304740,1767331840976,-393.79395609,0.00014969,2]
[400304742,1767331840985,-500.0,0.00014969,2]
[400304744,1767331840994,-500.0,0.00014969,2]
[400304746,1767331841003,-500.0,0.00014969,2]
[400304748,1767331841012,-508.00242075,0.00014969,2]
[400304750,1767331841023,-250.87276747,0.00014969,2]
[400304752,1767331841032,-500.0,0.00014969,2]
[400304754,1767331841040,-500.0,0.00014969,2]
[400304756,1767331841050,-500.0,0.00014969,2]
[400304758,1767331841059,-500.0,0.00014969,2]
[400304760,1767331841068,-548.28275774,0.00014969,2]
[400304763,1767331841077,-500.0,0.00014969,2]
[400304765,1767331841086,-551.62936971,0.00014969,2]
[400304766,1767331841095,-500.0,0.00014969,2]
[400304768,1767331841104,-2800.56320751,0.0001497,2]
[400304770,1767331841113,-329.1245,0.0001507,2]
[400304771,1767331841122,-19344.7832,0.00015071,2]
[400304773,1767331841132,-1000.0,0.00015071,2]
[400304775,1767331841141,-1852.42,0.0001515,2]
[400304776,1767331841150,-200.0,0.00015152,2]
[400304778,1767331841159,-207.4,0.00015152,2]
[400304779,1767331841168,-215.0738,0.00015152,2]
[400304780,1767331841178,-318.48492014,0.00015152,2]
[400304781,1767331841187,-2800.5632075,0.00015184,2]
[400304782,1767331841196,-353.30897806,0.00015208,2]
[400304783,1767331841205,-9733.87009337,0.00015209,2]
[400304784,1767331841214,-1436.75,0.00015309,2]
[400304785,1767331841223,-420.0,0.00015348,2]
[400304786,1767331841232,-420.0,0.00015348,2]
[400304787,1767331841241,-1565.0,0.00015382,2]
[400304788,1767331841250,-2800.5632075,0.00015399,2]
[400304789,1767331841259,-1680.0,0.0001541,2]
[400304790,1767331841268,-9733.87009337,0.00015451,2]
[400304791,1767331841277,-3336.15681922,0.0001548,2]
[400304792,1767331841287,-353.30897806,0.00015547,2]
[400304793,1767331841296,-2800.5632075,0.00015613,2]
[400304794,1767331841305,-9733.87009337,0.00015692,2]
[400304795,1767331841314,-177.47226611,0.00015813,2]
[400304796,1767331841323,-2800.5632075,0.00015828,2]
[400304797,1767331841332,-353.30897806,0.00015885,2]
[400304798,1767331841341,-255.0,0.00015891,2]
[400304799,1767331841350,-9733.87009337,0.00015934,2]
[400304800,1767331841359,-1282.0,0.00015936,2]
[400304801,1767331841368,-693.54004088,0.00016,2]
[400304803,1767331841377,-151.0,0.00016033,2]
[400304805,1767331841386,-2800.5632075,0.00016042,2]
[400304806,1767331841398,-1199.0,0.00016092,2]
[400304807,1767331841408,-9733.87009337,0.00016175,2]
[400304808,1767331841417,-1226.79,0.000162,5]
[400304809,1767331841426,-151.0,0.00016223,2]
[400304810,1767331841437,-151.0,0.00016223,2]
[400304811,1767331841446,-353.30897806,0.00016223,2]
[400304812,1767331841454,-154.78,0.00016236,2]
[400304813,1767331841465,-151.0,0.00016236,2]
[400304814,1767331841475,-151.0,0.00016236,2]
[400304815,1767331841484,-1000.0,0.00016252,2]
[400304816,1767331841493,-2800.5632075,0.00016257,2]